fUSD/lending_fUSD_20250511
["ID","MTS","AMOUNT","RATE_DAILY","PERIOD"]
[360690831,1746930648315,-300.61503683,0.00019899,2]
[360690832,1746930648325,-400.0,0.00019899,2]
[360690833,1746930648335,-400.0,0.00019899,2]
[360690834,1746930648346,-400.0,0.00019899,2]
[360690835,1746930648356,-478.93141351,0.00019899,2]
[360690836,1746930648366,-431.0901388,0.00019899,2]
[360690837,1746930648376,-234.67253371,0.000199,2]
[360690838,1746930648387,-12500.0,0.000199,2]
[360690839,1746930648397,-234.67253371,0.000199,2]
[360690840,1746930648406,-5499.93897336,0.000199,2]
[360690841,1746930648416,-389.2564641,0.000199,2]
[360690842,1746930648425,-1309.26166641,0.000199,2]
[360690843,1746930648435,-177.46203964,0.000199,2]
[360690844,1746930648445,-4756.33736898,0.000199,3]
[360690845,1746930648454,-12500.0,0.000199,2]
[360690846,1746930648464,-431.0901388,0.000199,2]
[360690847,1746930648474,-203.72522996,0.000199,3]
[360690848,1746930648483,-3273.39148594,0.000199,2]
[360690849,1746930648494,-12700.54099741,0.000199,2]
[360690850,1746930648503,-768.51492435,0.000199,2]
[360690851,1746930648514,-38194.37637382,0.000199,2]
[360690852,1746930648524,-4683.40585227,0.00019919,2]
[360690853,1746930648535,-19217.59172633,0.0001995,2]
[360690854,1746930648546,-1944.79,0.00019955,2]
[360690855,1746930648557,-211.065,0.00019955,2]
[360690856,1746930648567,-397.00858396,0.00019972,2]
[360690857,1746930648577,-503.03949981,0.00019972,2]
[360690858,1746930648588,-504.15010986,0.00019972,2]
[360690859,1746930648599,-269.06610533,0.00019972,2]
[360690860,1746930648609,-400.40335189,0.00019972,2]
[360690861,1746930648619,-400.0,0.00019972,2]
[360690862,1746930648629,-400.0,0.00019972,2]
[360690863,1746930648638,-400.0,0.00019972,2]
[360690864,1746930648648,-26500.0,0.00019973,2]
[360690865,1746930648657,-324.65181652,0.00019973,2]
[360690866,1746930648668,-500.0,0.00019973,2]
[360690867,1746930648683,-636.50749756,0.00019973,2]
[360690868,1746930648693,-500.0,0.00019973,2]
[360690869,1746930648703,-551.36387212,0.00019973,2]
[360690870,1746930648713,-491.09197973,0.00019973,2]
[360690871,1746930648723,-501.69559915,0.00019973,2]
[360690872,1746930648732,-500.84969207,0.00019973,2]
[360690873,1746930648742,-500.75787737,0.00019973,2]
[360690874,1746930648752,-500.83977743,0.00019973,2]
[360690875,1746930648761,-508.56963111,0.00019973,2]
[360690876,1746930648771,-532.89615849,0.00019973,2]
[360690877,1746930648781,-500.0,0.00019973,2]
[360690878,1746930648790,-500.0,0.00019973,2]
[360690879,1746930648800,-300.39888879,0.00019973,2]
[360690880,1746930648810,-500.73932483,0.00019973,2]
[360690881,1746930648820,-160.61335937,0.00019973,2]
[360690882,1746930648830,-160.71807893,0.00019973,2]
[360690883,1746930648840,-500.0,0.00019973,2]
[360690884,1746930648850,-500.81934901,0.00019973,2]
[360690885,1746930648860,-500.0,0.00019973,2]
[360690886,1746930648873,-500.0,0.00019973,2]
[360690887,1746930648884,-500.0,0.00019973,2]
[360690888,1746930648894,-153.77042958,0.00019973,2]
[360690889,1746930648904,-150.0,0.00019973,2]
[360690890,1746930648915,-150.0,0.00019973,2]
[360690891,1746930648929,-151.08754786,0.00019973,2]
[360690892,1746930648940,-500.0,0.00019973,2]
[360690893,1746930648953,-155.23085493,0.00019973,2]
[360690894,1746930648964,-300.24,0.00019981,2]
[360690895,1746930648975,-305.38,0.00019981,2]
[360690896,1746930648986,-369.89578617,0.00019984,2]
[360690897,1746930648997,-400.0,0.00019984,2]
[360690898,1746930649008,-400.0,0.00019984,2]
[360690899,1746930649018,-400.0,0.00019984,2]
[360690900,1746930649028,-400.0,0.00019984,2]
[360690901,1746930649037,-400.0,0.00019984,2]
[360690902,1746930649047,-400.0,0.00019984,2]
[360690903,1746930649056,-400.0,0.00019984,2]
[360690904,1746930649066,-223.06829627,0.00019984,2]
[360690905,1746930649075,-317.4939183,0.00019984,2]
[360690906,1746930649085,-400.0,0.00019984,2]
[360690907,1746930649095,-476.24,0.00019984,2]
[360690908,1746930649104,-523.84214621,0.00019984,2]
[360690909,1746930649113,-231.33129264,0.00019984,2]
[360690910,1746930649123,-400.0,0.00019984,2]
[360690911,1746930649132,-400.0,0.00019984,2]
[360690912,1746930649142,-370.08,0.00019984,2]
[360690913,1746930649152,-293.90514321,0.00019984,2]
[360690914,1746930649161,-400.0,0.00019984,2]
[360690915,1746930649171,-400.0,0.00019984,2]
[360690916,1746930649184,-423.04,0.00019984,2]
[360690917,1746930649194,-400.0,0.00019984,2]
[360690918,1746930649203,-400.0,0.00019985,2]
[360690919,1746930649213,-400.0,0.00019985,2]
[360690920,1746930649223,-911.79,0.00019985,2]
[360690921,1746930649232,-400.0,0.00019985,2]
[360690922,1746930649242,-429.87,0.00019985,2]
[360690923,1746930649251,-400.0,0.00019985,2]
[360690924,1746930649261,-400.0,0.00019985,2]
[360690925,1746930649270,-463.65682553,0.00019985,2]
[360690926,1746930649280,-400.0,0.00019985,2]
[360690927,1746930649289,-494.52061501,0.00019985,2]
[360690928,1746930649299,-400.0,0.00019985,2]
[360690929,1746930649308,-400.0,0.00019985,2]
[360690930,1746930649318,-400.0,0.00019985,2]
[360690931,1746930649328,-304.74519313,0.00019985,2]
[360690932,1746930649339,-400.0,0.00019985,2]
[360690933,1746930649349,-254.04390746,0.00019985,2]
[360690934,1746930649360,-400.0,0.00019985,2]
[360690935,1746930649370,-400.0,0.00019985,2]
[360690936,1746930649380,-400.0,0.00019985,2]
[360690937,1746930649390,-285.71060262,0.00019985,2]
[360690938,1746930649400,-400.0,0.00019985,2]
[360690939,1746930649410,-400.0,0.00019985,2]
[360690940,1746930649420,-380.0,0.00019985,2]
[360690941,1746930649432,-454.98222305,0.00019985,2]
[360690942,1746930649443,-400.0,0.00019985,2]
[360690943,1746930649453,-400.0,0.00019985,2]
[360690944,1746930649464,-241.55,0.00019985,2]
[360690945,1746930649474,-170.88250228,0.00019985,2]
[360690946,1746930649484,-2837.93,0.00019985,2]
[360690947,1746930649495,-400.0,0.00019985,2]
[360690948,1746930649504,-400.0,0.00019985,2]
[360690949,1746930649514,-400.0,0.00019985,2]
[360690950,1746930649524,-439.94,0.00019985,2]
[360690951,1746930649534,-744.61,0.00019985,2]
[360690952,1746930649544,-490.87886885,0.00019985,2]
[360690953,1746930649554,-400.0,0.00019985,2]
[360690954,1746930649564,-400.0,0.00019985,2]
[360690955,1746930649573,-400.0,0.00019985,2]
[360690956,1746930649583,-159.88772601,0.00019985,2]
[360690957,1746930649593,-400.0,0.00019985,2]
[360690958,1746930649602,-400.0,0.00019985,2]
[360690959,1746930649611,-400.0,0.00019985,2]
[360690960,1746930649621,-500.60306038,0.00019985,2]
[360690961,1746930649630,-249.05559453,0.00019985,2]
[360690962,1746930649640,-400.0,0.00019985,2]
[360690963,1746930649649,-658.63,0.00019985,2]
[360690964,1746930649659,-400.0,0.00019985,2]
[360690965,1746930649668,-514.25,0.00019985,2]
[360690966,1746930649680,-357.26356769,0.00019985,2]
[360690967,1746930649689,-400.0,0.00019985,2]
[360690968,1746930649698,-400.0,0.00019985,2]
[360690969,1746930649708,-400.0,0.00019985,2]
[360690970,1746930649718,-615.09,0.00019985,2]
[360690971,1746930649728,-400.0,0.00019985,2]
[360690972,1746930649737,-400.0,0.00019985,2]
[360690973,1746930649747,-400.0,0.00019985,2]
[360690974,1746930649756,-400.32,0.00019985,2]
[360690975,1746930649766,-400.0,0.00019985,2]
[360690976,1746930649776,-400.0,0.00019985,2]
[360690977,1746930649785,-530.1,0.00019985,2]
[360690978,1746930649795,-617.24,0.00019985,2]
[360690979,1746930649805,-400.0,0.00019985,2]
[360690980,1746930649814,-400.0,0.00019985,2]
[360690981,1746930649824,-400.0,0.00019985,2]
[360690982,1746930649834,-400.0,0.00019985,2]
[360690983,1746930649844,-627.91,0.00019985,2]
[360690984,1746930649854,-400.0,0.00019985,2]
[360690985,1746930649866,-400.0,0.00019985,2]
[360690986,1746930649879,-508.19,0.00019985,2]
[360690987,1746930649889,-400.0,0.00019985,2]
[360690988,1746930649898,-4405.77945409,0.00019985,2]
[360690989,1746930650432,-150.0,0.00019999,7]
[360690990,1746930650573,-273.8014676,0.000198,2]
[360690991,1746930650584,-400.0,0.00019871,2]
[360690992,1746930650594,-400.0,0.00019871,2]
[360690993,1746930650604,-519.38,0.00019882,2]
[360690994,1746930650614,-519.38,0.0001989,2]
[360690995,1746930650624,-400.0,0.00019972,2]
[360690996,1746930650633,-8579.42054591,0.00019985,2]
[360690997,1746930650643,-597.0,0.00019985,2]
[360690998,1746930650652,-400.0,0.00019985,2]
[360690999,1746930650662,-400.0,0.00019985,2]
[360691000,1746930650672,-400.0,0.00019985,2]
[360691001,1746930650683,-400.0,0.00019985,2]
[360691002,1746930650692,-400.0,0.00019985,2]
[360691003,1746930650702,-400.0,0.00019985,2]
[360691004,1746930650711,-400.0,0.00019985,2]
[360691005,1746930650721,-400.0,0.00019985,2]
[360691006,1746930650731,-400.0,0.00019985,2]
[360691007,1746930650740,-400.0,0.00019985,2]
[360691008,1746930650750,-400.0,0.00019985,2]
[360691009,1746930650760,-400.0,0.00019985,2]
[360691010,1746930650769,-2778.6,0.00019985,2]
[360691011,1746930650779,-604.98,0.00019985,2]
[360691012,1746930650789,-400.0,0.00019985,2]
[360691013,1746930650799,-400.0,0.00019985,2]
[360691014,1746930650809,-400.0,0.00019985,2]
[360691015,1746930650818,-400.0,0.00019985,2]
[360691016,1746930650829,-400.0,0.00019985,2]
[360691017,1746930650839,-400.0,0.00019985,2]
[360691018,1746930650848,-400.0,0.00019985,2]
[360691019,1746930650858,-566.4,0.00019985,2]
[360691020,1746930650869,-400.0,0.00019985,2]
[360691021,1746930650881,-400.0,0.00019985,2]
[360691022,1746930650891,-400.0,0.00019985,2]
[360691023,1746930650901,-400.0,0.00019985,2]
[360691024,1746930650911,-400.0,0.00019985,2]
[360691025,1746930650921,-727.9,0.00019985,2]
[360691026,1746930650932,-400.0,0.00019985,2]
[360691027,1746930650941,-400.0,0.00019985,2]
[360691028,1746930650952,-400.0,0.00019985,2]
[360691029,1746930650963,-400.0,0.00019985,2]
[360691030,1746930650972,-1118.4,0.00019985,2]
[360691031,1746930650982,-400.0,0.00019985,2]
[360691032,1746930650992,-400.0,0.00019985,2]
[360691033,1746930651002,-400.0,0.00019985,2]
[360691034,1746930651012,-400.0,0.00019985,2]
[360691035,1746930651022,-1312.85,0.00019985,2]
[360691036,1746930651032,-150.648152,0.00019985,2]
[360691037,1746930651042,-400.0,0.00019985,2]
[360691038,1746930651053,-400.0,0.00019985,2]
[360691039,1746930651064,-620.03,0.00019985,2]
[360691040,1746930651073,-400.0,0.00019985,2]
[360691041,1746930651083,-1130.75,0.00019985,2]
[360691042,1746930651095,-519.38,0.00019985,2]
[360691043,1746930651104,-979.84,0.00019986,2]
[360691044,1746930651115,-413.9,0.00019986,2]
[360691045,1746930651124,-301.40023772,0.00019986,2]
[360691046,1746930651134,-400.0,0.00019986,2]
[360691047,1746930651145,-400.0,0.00019986,2]
[360691048,1746930651155,-400.0,0.00019986,2]
[360691049,1746930651165,-400.0,0.00019986,2]
[360691050,1746930651367,-400.0,0.00019986,2]
[360691051,1746930651378,-511.20741319,0.00019986,2]
[360691052,1746930651387,-400.0,0.00019986,2]
[360691053,1746930651397,-400.0,0.00019986,2]
[360691054,1746930651406,-400.0,0.00019986,2]
[360691055,1746930651415,-317.00208023,0.00019986,2]
[360691056,1746930651426,-400.0,0.00019986,2]
[360691057,1746930651436,-400.0,0.00019986,2]
[360691058,1746930651446,-400.0,0.00019986,2]
[360691059,1746930651455,-400.0,0.00019986,2]
[360691060,1746930651465,-208.00856755,0.00019986,2]
[360691061,1746930651475,-400.0,0.00019986,2]
[360691062,1746930651486,-400.0,0.00019986,2]
[360691063,1746930651495,-400.0,0.00019986,2]
[360691064,1746930651506,-450.0,0.00019986,2]
[360691065,1746930651515,-403.77224921,0.00019986,2]
[360691066,1746930651525,-400.0,0.00019986,2]
[360691067,1746930651534,-406.10821631,0.00019986,2]
[360691068,1746930651544,-400.0,0.00019986,2]
[360691069,1746930651554,-400.0,0.00019986,2]
[360691070,1746930651563,-400.0,0.00019986,2]
[360691071,1746930651572,-400.0,0.00019986,2]
[360691072,1746930651582,-400.85797092,0.00019986,2]
[360691073,1746930651591,-400.0,0.00019986,2]
[360691074,1746930651601,-300.0,0.00019986,2]
[360691075,1746930651611,-400.0,0.00019986,2]
[360691076,1746930651620,-2503.8793541,0.00019986,2]
[360691077,1746930651630,-80108.2648084,0.00019986,2]
[360691078,1746930651639,-7761.3024792,0.00019986,2]
[360691079,1746930651649,-400.0,0.00019986,2]
[360691080,1746930651659,-282.42,0.00019987,2]
[360691081,1746930651668,-400.0,0.00019987,2]
[360691082,1746930651678,-198.22006,0.00019989,2]
[360691083,1746930651688,-198.22006,0.0001999,2]
[360691084,1746930651697,-1631.94,0.00019993,2]
[360691085,1746930651707,-400.0,0.00019993,2]
[360691086,1746930651717,-400.0,0.00019993,2]
[360691087,1746930651726,-400.0,0.00019993,2]
[360691088,1746930651736,-400.0,0.00019993,2]
[360691089,1746930651745,-400.0,0.00019993,2]
[360691090,1746930651755,-400.0,0.00019993,2]
[360691091,1746930651764,-400.0,0.00019993,2]
[360691092,1746930651774,-400.0,0.00019993,2]
[360691093,1746930651783,-476.24,0.00019993,2]
[360691094,1746930651793,-400.0,0.00019993,2]
[360691095,1746930651802,-400.0,0.00019993,2]
[360691096,1746930651812,-400.0,0.00019993,2]
[360691097,1746930651822,-155.78831859,0.00019994,2]
[360691098,1746930651831,-400.0,0.00019995,2]
[360691099,1746930651840,-400.0,0.00019995,2]
[360691100,1746930651850,-911.79,0.00019996,2]
[360691101,1746930651860,-400.0,0.00019996,2]
[360691102,1746930651870,-429.87,0.00019996,2]
[360691103,1746930651882,-400.0,0.00019996,2]
[360691104,1746930651892,-400.0,0.00019996,2]
[360691105,1746930651902,-400.0,0.00019996,2]
[360691106,1746930651911,-400.0,0.00019996,2]
[360691107,1746930651922,-400.0,0.00019996,2]
[360691108,1746930651933,-400.0,0.00019996,2]
[360691109,1746930651943,-744.61,0.00019996,2]
[360691110,1746930651955,-400.0,0.00019996,2]
[360691111,1746930651965,-400.0,0.00019996,2]
[360691112,1746930651975,-383.69666534,0.00019996,2]
[360691113,1746930651984,-658.63,0.00019996,2]
[360691114,1746930651995,-320.58216204,0.00019996,2]
[360691115,1746930652004,-615.09,0.00019996,2]
[360691116,1746930652014,-454.57381994,0.00019996,2]
[360691117,1746930652024,-400.0,0.00019996,2]
[360691118,1746930652034,-400.0,0.00019996,2]
[360691119,1746930652043,-400.0,0.00019996,2]
[360691120,1746930652052,-617.24,0.00019996,2]
[360691121,1746930652062,-400.0,0.00019996,2]
[360691122,1746930652072,-400.0,0.00019996,2]
[360691123,1746930652081,-627.91,0.00019996,2]
[360691124,1746930652091,-400.0,0.00019996,2]
[360691125,1746930652100,-400.0,0.00019996,2]
[360691126,1746930652110,-597.0,0.00019996,2]
[360691127,1746930652120,-400.0,0.00019996,2]
[360691128,1746930652130,-400.0,0.00019996,2]
[360691129,1746930652139,-400.0,0.00019996,2]
[360691130,1746930652148,-400.0,0.00019996,2]
[360691131,1746930652158,-400.0,0.00019996,2]
[360691132,1746930652168,-400.0,0.00019996,2]
[360691133,1746930652180,-400.0,0.00019996,2]
[360691134,1746930652190,-2778.6,0.00019996,2]
[360691135,1746930652199,-604.98,0.00019996,2]
[360691136,1746930652209,-400.0,0.00019996,2]
[360691137,1746930652219,-400.0,0.00019996,2]
[360691138,1746930652228,-445.49686338,0.00019996,2]
[360691139,1746930652238,-400.0,0.00019996,2]
[360691140,1746930652248,-566.4,0.00019996,2]
[360691141,1746930652258,-400.0,0.00019996,2]
[360691142,1746930652268,-727.9,0.00019996,2]
[360691143,1746930652279,-400.0,0.00019996,2]
[360691144,1746930652289,-400.0,0.00019996,2]
[360691145,1746930652299,-400.0,0.00019996,2]
[360691146,1746930652309,-400.0,0.00019996,2]
[360691147,1746930652319,-400.0,0.00019996,2]
[360691148,1746930652330,-400.0,0.00019996,2]
[360691149,1746930652340,-400.0,0.00019996,2]
[360691150,1746930652350,-150.648152,0.00019996,2]
[360691151,1746930652361,-400.0,0.00019996,2]
[360691152,1746930652371,-400.0,0.00019996,2]
[360691153,1746930652381,-519.38,0.00019996,2]
[360691154,1746930652390,-12012.0,0.00019996,2]
[360691155,1746930652400,-979.84,0.00019997,2]
[360691156,1746930652410,-400.0,0.00019997,2]
[360691157,1746930652420,-400.0,0.00019997,2]
[360691158,1746930652431,-400.0,0.00019997,2]
[360691159,1746930652440,-400.0,0.00019997,2]
[360691160,1746930652450,-548.15242536,0.00019997,2]
[360691161,1746930652459,-498.80178301,0.00019997,2]
[360691162,1746930652469,-400.0,0.00019997,2]
[360691163,1746930652479,-400.0,0.00019997,2]
[360691164,1746930652488,-400.0,0.00019997,2]
[360691165,1746930652498,-400.0,0.00019997,2]
[360691166,1746930652508,-400.0,0.00019997,2]
[360691167,1746930652518,-194.40618514,0.00019997,2]
[360691168,1746930652528,-400.0,0.00019997,2]
[360691169,1746930652539,-400.0,0.00019997,2]
[360691170,1746930652548,-400.0,0.00019997,2]
[360691171,1746930652557,-400.0,0.00019997,2]
[360691172,1746930652567,-400.0,0.00019997,2]
[360691173,1746930652576,-400.0,0.00019997,2]
[360691174,1746930652587,-400.0,0.00019997,2]
[360691175,1746930652596,-400.0,0.00019997,2]
[360691176,1746930652605,-400.0,0.00019997,2]
[360691177,1746930652615,-400.0,0.00019997,2]
[360691178,1746930652625,-400.0,0.00019997,2]
[360691179,1746930652635,-400.0,0.00019997,2]
[360691180,1746930652648,-400.0,0.00019997,2]
[360691181,1746930652659,-439.94,0.00019997,2]
[360691182,1746930652669,-400.0,0.00019997,2]
[360691183,1746930652680,-400.0,0.00019997,2]
[360691184,1746930652690,-400.0,0.00019997,2]
[360691185,1746930652699,-503.46,0.00019997,2]
[360691186,1746930652709,-400.0,0.00019997,2]
[360691187,1746930652721,-400.0,0.00019997,2]
[360691188,1746930652731,-300.0,0.00019997,2]
[360691189,1746930652743,-400.0,0.00019997,2]
[360691190,1746930652754,-400.0,0.00019997,2]
[360691191,1746930652764,-476.24,0.00019997,2]
[360691192,1746930652773,-400.0,0.00019997,2]
[360691193,1746930652782,-327.65,0.00019997,2]
[360691194,1746930652791,-400.0,0.00019997,2]
[360691195,1746930652801,-400.32,0.00019997,2]
[360691196,1746930652811,-400.0,0.00019997,2]
[360691197,1746930652821,-400.0,0.00019997,2]
[360691198,1746930652830,-400.0,0.00019997,2]
[360691199,1746930652840,-508.19,0.00019997,2]
[360691200,1746930652850,-12985.2,0.00019997,2]
[360691201,1746930652860,-244.9519851,0.00019997,2]
[360691202,1746930652870,-400.0,0.00019997,2]
[360691203,1746930652883,-400.0,0.00019997,2]
[360691204,1746930652892,-400.0,0.00019997,2]
[360691205,1746930652902,-400.0,0.00019997,2]
[360691206,1746930652912,-400.0,0.00019997,2]
[360691207,1746930652924,-400.0,0.00019997,2]
[360691208,1746930652937,-400.0,0.00019997,2]
[360691209,1746930652946,-400.0,0.00019997,2]
[360691210,1746930652956,-400.0,0.00019997,2]
[360691211,1746930652966,-400.0,0.00019997,2]
[360691212,1746930652976,-400.0,0.00019997,2]
[360691213,1746930652985,-400.0,0.00019997,2]
[360691214,1746930652994,-400.0,0.00019997,2]
[360691215,1746930653003,-400.0,0.00019997,2]
[360691216,1746930653013,-1118.4,0.00019997,2]
[360691217,1746930653023,-400.0,0.00019997,2]
[360691218,1746930653032,-1312.85,0.00019997,2]
[360691219,1746930653043,-400.0,0.00019997,2]
[360691220,1746930653052,-400.0,0.00019997,2]
[360691221,1746930653062,-620.03,0.00019997,2]
[360691222,1746930653071,-1130.75,0.00019997,2]
[360691223,1746930653080,-400.0,0.00019997,2]
[360691224,1746930653090,-175.67042858,0.00019998,2]
[360691225,1746930653099,-639.30387591,0.00019998,2]
[360691226,1746930653109,-936.57181666,0.00019998,2]
[360691227,1746930653118,-162.46627,0.00019998,2]
[360691228,1746930653128,-979.84,0.00019998,2]
[360691229,1746930653137,-151.0,0.00019998,2]
[360691230,1746930653146,-151.0,0.00019998,2]
[360691231,1746930653155,-151.0,0.00019998,2]
[360691232,1746930653165,-911.79,0.00019998,2]
[360691233,1746930653174,-911.79,0.00019998,2]
[360691234,1746930653185,-400.0,0.00019998,2]
[360691235,1746930653194,-210.3458777,0.00019998,2]
[360691236,1746930653204,-151.0,0.00019998,2]
[360691237,1746930653214,-429.87,0.00019998,2]
[360691238,1746930653223,-429.87,0.00019998,2]
[360691239,1746930653232,-151.3744,0.00019998,2]
[360691240,1746930653242,-400.0,0.00019998,2]
[360691241,1746930653251,-400.0,0.00019998,2]
[360691242,1746930653260,-400.0,0.00019998,2]
[360691243,1746930653269,-318.20704392,0.00019998,2]
[360691244,1746930653279,-400.0,0.00019998,2]
[360691245,1746930653288,-400.0,0.00019998,2]
[360691246,1746930653297,-400.0,0.00019998,2]
[360691247,1746930653306,-400.0,0.00019998,2]
[360691248,1746930653316,-400.0,0.00019998,2]
[360691249,1746930653326,-151.0,0.00019998,2]
[360691250,1746930653336,-400.0,0.00019998,2]
[360691251,1746930653345,-485.62147751,0.00019998,2]
[360691252,1746930653355,-463.05548667,0.00019998,2]
[360691253,1746930653364,-400.0,0.00019998,2]
[360691254,1746930653374,-500.0,0.00019998,2]
[360691255,1746930653384,-400.0,0.00019998,2]
[360691256,1746930653393,-400.0,0.00019998,2]
[360691257,1746930653403,-400.0,0.00019998,2]
[360691258,1746930653413,-400.0,0.00019998,2]
[360691259,1746930653423,-314.01107479,0.00019998,2]
[360691260,1746930653435,-400.0,0.00019998,2]
[360691261,1746930653444,-400.0,0.00019998,2]
[360691262,1746930653453,-400.0,0.00019998,2]
[360691263,1746930653462,-400.0,0.00019998,2]
[360691264,1746930653472,-400.0,0.00019998,2]
[360691265,1746930653482,-400.0,0.00019998,2]
[360691266,1746930653491,-400.0,0.00019998,2]
[360691267,1746930653501,-400.0,0.00019998,2]
[360691268,1746930653511,-400.0,0.00019998,2]
[360691269,1746930653520,-400.0,0.00019998,2]
[360691270,1746930653530,-400.0,0.00019998,2]
[360691271,1746930653540,-153.773973,0.00019998,2]
[360691272,1746930653550,-400.0,0.00019998,2]
[360691273,1746930653559,-151.0,0.00019998,2]
[360691274,1746930653570,-400.0,0.00019998,2]
[360691275,1746930653580,-151.0,0.00019998,2]
[360691276,1746930653591,-164.6699257,0.00019998,2]
[360691277,1746930653600,-151.0,0.00019998,2]
[360691278,1746930653609,-151.0,0.00019998,2]
[360691279,1746930653620,-400.0,0.00019998,2]
[360691280,1746930653631,-400.0,0.00019998,2]
[360691281,1746930653641,-467.06,0.00019998,2]
[360691282,1746930653651,-151.0,0.00019998,2]
[360691283,1746930653659,-439.94,0.00019998,2]
[360691284,1746930653671,-439.94,0.00019998,2]
[360691285,1746930653680,-439.94,0.00019998,2]
[360691286,1746930653733,-439.94,0.00019998,2]
[360691287,1746930653742,-744.61,0.00019998,2]
[360691288,1746930653751,-744.61,0.00019998,2]
[360691289,1746930653760,-151.78218,0.00019998,2]
[360691290,1746930653769,-398.3,0.00019998,2]
[360691291,1746930653779,-400.0,0.00019998,2]
[360691292,1746930653787,-400.0,0.00019998,2]
[360691293,1746930653797,-400.0,0.00019998,2]
[360691294,1746930653806,-400.0,0.00019998,2]
[360691295,1746930653815,-400.0,0.00019998,2]
[360691296,1746930653824,-222.23,0.00019998,2]
[360691297,1746930653833,-151.0,0.00019998,2]
[360691298,1746930653842,-400.0,0.00019998,2]
[360691299,1746930653851,-400.0,0.00019998,2]
[360691300,1746930653860,-400.0,0.00019998,2]
[360691301,1746930653870,-160.44,0.00019998,2]
[360691302,1746930653883,-658.63,0.00019998,2]
[360691303,1746930653892,-658.63,0.00019998,2]
[360691304,1746930653901,-400.0,0.00019998,2]
[360691305,1746930653911,-400.0,0.00019998,2]
[360691306,1746930653922,-400.0,0.00019998,2]
[360691307,1746930653930,-270.8,0.00019998,2]
[360691308,1746930653940,-400.0,0.00019998,2]
[360691309,1746930653950,-476.24,0.00019998,2]
[360691310,1746930653960,-400.0,0.00019998,2]
[360691311,1746930653969,-335.27,0.00019998,2]
[360691312,1746930653978,-252.518632,0.00019998,2]
[360691313,1746930653987,-615.09,0.00019998,2]
[360691314,1746930653996,-615.09,0.00019998,2]
[360691315,1746930654005,-400.0,0.00019998,2]
[360691316,1746930654015,-400.0,0.00019998,2]
[360691317,1746930654024,-400.0,0.00019998,2]
[360691318,1746930654033,-334.51513819,0.00019998,2]
[360691319,1746930654043,-151.0,0.00019998,2]
[360691320,1746930654053,-151.0,0.00019998,2]
[360691321,1746930654063,-400.0,0.00019998,2]
[360691322,1746930654072,-400.0,0.00019998,2]
[360691323,1746930654081,-400.0,0.00019998,2]
[360691324,1746930654090,-400.32,0.00019998,2]
[360691325,1746930654100,-400.32,0.00019998,2]
[360691326,1746930654109,-400.0,0.00019998,2]
[360691327,1746930654118,-400.32,0.00019998,2]
[360691328,1746930654127,-400.0,0.00019998,2]
[360691329,1746930654136,-400.32,0.00019998,2]
[360691330,1746930654145,-400.0,0.00019998,2]